lending/lending_fUSD_20241005
["ID","MTS","AMOUNT","RATE_DAILY","PERIOD"]
[339884708,1728131780299,-1422.4903,0.000108,2]
[339884709,1728131780322,-315.63,0.00010829,2]
[339884710,1728131780344,-500.0,0.00010873,2]
[339884711,1728131780579,-2007.8125478,0.00010899,2]
[339884712,1728131780602,-150.0,0.00010899,2]
[339884713,1728131780625,-35155.174,0.000109,2]
[339884714,1728131780647,-5223.062,0.000109,2]
[339884715,1728131780670,-1000.0,0.000109,2]
[339884716,1728131780693,-4017.4951,0.000109,2]
[339884717,1728131780713,-262.0196,0.000109,2]
[339884718,1728131780735,-7500.0,0.000109,2]
[339884719,1728131780756,-1461.4582,0.000109,2]
[339884720,1728131780778,-89347.8763522,0.000109,2]
[339884721,1728131800809,150.0,8.864e-05,2]
[339884722,1728131800832,211.4604,8.864e-05,2]
[339884723,1728131800857,341.4196,8.864e-05,2]
[339884724,1728132117993,171.19,9.996e-05,2]
[339884725,1728132186552,481.92,0.0001,2]
[339884726,1728132267293,250.0,0.00010032,2]
[339884727,1728132460498,-163.69,0.00010373,2]
[339884728,1728132460520,-163.69,0.0001038,2]
[339884729,1728132460541,-163.69,0.00010386,2]
[339884730,1728132460562,-163.69,0.00010393,2]
[339884731,1728132460584,-163.69,0.00010399,2]
[339884732,1728132460606,-163.69,0.00010406,2]
[339884733,1728132460627,-163.69,0.00010412,2]
[339884734,1728132460648,-163.69,0.00010419,2]
[339884735,1728132460670,-163.69,0.00010425,2]
[339884736,1728132460691,-1000.0,0.0001049,2]
[339884737,1728132460711,-790.19,0.0001049,2]
[339884738,1728132460732,-250.0,0.00010694,2]
[339884739,1728132460753,-162.4233,0.000108,2]
[339884740,1728132460773,-2500.0,0.000108,2]
[339884741,1728132460793,-300.0,0.00010889,2]
[339884742,1728132460812,-4648.71970651,0.0001089,2]
[339884743,1728132460832,-150.0,0.00010899,2]
[339884744,1728132460854,-31725.45699349,0.000109,2]
[339884745,1728132527027,667.73,8.755e-05,2]
[339884753,1728132632023,-1000.0,0.00010633,2]
[339884754,1728132632033,-250.0,0.00010725,2]
[339884755,1728132632045,-2500.0,0.000108,2]
[339884756,1728132632055,-150.0,0.00010899,2]
[339884757,1728132632067,-2410.93583295,0.00010899,2]
[339884758,1728132632079,-49420.36416715,0.000109,2]
[339884759,1728132632090,-57109.3334012,0.000109,2]
[339884760,1728132632105,-17396.96908596,0.000109,2]
[339884761,1728132632116,-318.85595472,0.000109,2]
[339884762,1728132632126,-26135.4173,0.000109,2]
[339884763,1728132632137,-2937.659,0.000109,2]
[339884764,1728132632150,-159.53480384,0.000109,2]
[339884765,1728132632160,-5971.6844,0.000109,2]
[339884766,1728132632170,-163.852,0.000109,2]
[339884767,1728132632181,-542.516,0.000109,2]
[339884768,1728132632192,-1042.0,0.000109,2]
[339884771,1728132632202,-500.0,0.00010912,2]
[339884772,1728132632211,-206.5,0.00010959,2]
[339884774,1728132632222,-158.3,0.00010959,2]
[339884775,1728132632232,-600.45,0.00010959,2]
[339884776,1728132632242,-163.72,0.00010959,2]
[339884777,1728132632252,-499.68768684,0.00010973,2]
[339884778,1728132632263,-1659.82943714,0.00010999,2]
[339884779,1728132632273,-151.84191111,0.00010999,2]
[339884780,1728132632283,-270.10717073,0.00010999,2]
[339884781,1728132632292,-513.0,0.00011,2]
[339884782,1728132632302,-2491.72,0.00011,2]
[339884783,1728132632312,-499.99,0.00011,2]
[339884784,1728132632322,-93441.36524967,0.00011,2]
[339884786,1728132637779,-5181.5326,0.00011,2]
[339884787,1728132637837,-4706490.56964106,0.00011,2]
[339884788,1728132637945,-18184.72573084,0.00011,2]
[339884789,1728132638001,-3944.26065936,0.00011,2]
[339884792,1728132639915,-20453.58063277,0.00011,2]
[339884793,1728132639927,-54764.66971007,0.00011,2]
[339884794,1728132639939,-363.99000003,0.00011,2]
[339884796,1728132642930,-7864.076,0.00011,2]
[339884824,1728132645821,-3461.90764,0.00011,2]
[339884852,1728132646127,-179042.3569008,0.00011,2]
[339884859,1728132646165,-1289.6796,0.00010625,2]
[339884862,1728132646174,-105616.24079315,0.00011,2]
[339884865,1728132646184,-44489.55360683,0.00011,2]
[339884870,1728132646327,-197430.00115218,0.00011,2]
[339884871,1728132783708,200.0,0.000104,3]
[339884872,1728132785175,500.0,0.000105,3]
[339884873,1728132787185,700.0,0.000106,3]
[339884874,1728132789280,1000.0,0.000107,3]
[339884875,1728132789470,250.0,0.00010065,2]
[339884876,1728132791449,1300.0,0.000108,3]
[339884877,1728132794021,200.0,0.000109,3]
[339884878,1728133068613,683.15,8.688e-05,2]
[339884879,1728133079964,-150.0,0.00010607,2]
[339884880,1728133247940,-74.29,0.00010607,2]
[339884881,1728133247964,-200.0,0.0001066,2]
[339884882,1728133247985,-250.0,0.00010731,2]
[339884883,1728133248006,-8475.71,0.000108,2]
[339884884,1728133608201,150.0,8.436e-05,2]
[339884885,1728133608223,150.0,8.436e-05,2]
[339884886,1728133608245,150.0,8.436e-05,2]
[339884887,1728133608267,172.8196,8.436e-05,2]
[339884888,1728133608290,26.1704,8.436e-05,2]
[339884893,1728133817554,888.75166088,0.00010193,2]
[339884913,1728133832042,-1000.0,0.0001024,2]
[339884914,1728133832051,-385.53,0.00010245,2]
[339884915,1728133832061,-171.19,0.00010293,2]
[339884916,1728133832071,-6.3842954,0.00010309,2]
[339884917,1728133832101,-243.6157046,0.00010309,2]
[339884918,1728133832111,-250.0,0.00010586,2]
[339884919,1728133832121,-300.0,0.00010636,2]
[339884920,1728133832131,-191.18903167,0.00010637,2]
[339884921,1728133832143,-1065.6601475,0.00010637,2]
[339884941,1728133838583,-39456.15082083,0.00010637,2]
[339884942,1728133838594,-648.99,0.000107,2]
[339884943,1728133838604,-500.0,0.00010714,2]
[339884944,1728133838613,-252.5,0.00010726,2]
[339884945,1728133838624,-372.8196,0.00010773,2]
[339884946,1728133838634,-150.0,0.00010775,2]
[339884947,1728133838644,-1709.1038,0.000108,2]
[339884948,1728133838653,-151.0,0.000108,2]
[339884949,1728133838663,-499.99,0.00010872,2]
[339884950,1728133838672,-171.33216568,0.00010873,2]
[339884951,1728133838682,-500.0,0.00010873,2]
[339884952,1728133838692,-500.0,0.00010873,2]
[339884953,1728133838701,-500.0,0.00010873,2]
[339884954,1728133838710,-500.0,0.00010873,2]
[339884955,1728133838720,-107680.9872,0.000109,2]
[339884956,1728133838729,-789.4222,0.000109,2]
[339884957,1728133838739,-172.52060974,0.000109,2]
[339884958,1728133838749,-490.899,0.000109,2]
[339884959,1728133838758,-161.966,0.000109,2]
[339884960,1728133838767,-4851.9927,0.000109,2]
[339884961,1728133838776,-1198.553999,0.000109,2]
[339884962,1728133838785,-2500.0,0.000109,2]
[339884963,1728133838794,-338.34895761,0.000109,2]
[339884964,1728133838804,-161.00986191,0.000109,2]
[339884965,1728133838814,-457.69,0.00010913,2]
[339884966,1728133838823,-442.53,0.00010913,2]
[339884967,1728133838833,-198.62,0.00010959,2]
[339884968,1728133838842,-163.19,0.00010959,2]
[339884969,1728133838852,-168.49,0.00010959,2]
[339884970,1728133838862,-500.0,0.00010973,2]
[339884971,1728133838871,-178.59057591,0.00010997,2]
[339884972,1728133838880,-414.95735928,0.00010999,2]
[339884973,1728133838889,-204.76675314,0.00010999,2]
[339884974,1728133838899,-611.0,0.00011,2]
[339884975,1728133838908,-373972.50470615,0.00011,2]
[339884976,1728133838918,-375.0,0.00011,2]
[339884977,1728133838928,-403957.46932421,0.00011,2]
[339884978,1728133838939,-1147347.01545081,0.00011,2]
[339884979,1728133839263,-2045.692931,0.00011,2]
[339884980,1728133839279,-3391.02777526,0.00011,2]
[339884993,1728133839942,-363.65499998,0.00011,2]
[339885036,1728133843040,-3020.22780617,0.00011,2]
[339885037,1728133843263,-154.23122312,0.000109,2]
[339885039,1728133843273,-2118373.07987425,0.00011,2]
[339885040,1728133843282,-2072754.71443363,0.00011,2]
[339885046,1728133846139,-50453.77125927,0.00011,2]
[339885047,1728133846152,-34960.95770664,0.00011,2]
[339885048,1728133901394,11513.0,0.000123,5]
[339885049,1728133987133,200.0,0.00021,90]
[339885050,1728134181051,584.09,9.626e-05,2]
[339885051,1728134598162,150.0,9.549e-05,2]
[339885052,1728134598185,350.0,9.549e-05,2]
[339885053,1728134702989,554.88,8.717e-05,2]
[339885054,1728134880974,-9384.66,0.00010511,2]
[339885055,1728134881004,-329.83281498,0.00010542,2]
[339885056,1728134881024,-250.0,0.00010635,2]
[339885057,1728134881044,-150.0,0.00010642,2]
[339885058,1728134881064,-250.0,0.00010671,2]
[339885059,1728134881086,-200.0,0.00010777,2]
[339885060,1728134881106,-235.50718502,0.00010857,2]
[339885078,1728135032119,-130.64281498,0.00010857,2]
[339885079,1728135032128,-586.58474676,0.00010873,2]
[339885080,1728135032139,-48.34319832,0.0001089,2]
[339885081,1728135032181,-201.70081172,0.0001089,2]
[339885082,1728135032190,-161.96712929,0.00010899,2]
[339885083,1728135032200,-392.72,0.00010899,2]
[339885084,1728135032210,-1287.77511621,0.000109,2]
[339885085,1728135032221,-11418.1991888,0.000109,2]
[339885091,1728135038244,-4228.54389499,0.000109,2]
[339885092,1728135038259,-46670.4915,0.000109,2]
[339885093,1728135038275,-12112.5466,0.000109,2]
[339885094,1728135038290,-1000.0,0.000109,2]
[339885095,1728135038305,-172.52060973,0.000109,2]
[339885096,1728135038319,-3349.95642914,0.000109,2]
[339885097,1728135038334,-174.79455141,0.000109,2]
[339885098,1728135038349,-2500.0,0.000109,2]
[339885099,1728135038364,-840.0,0.00010915,2]
[339885100,1728135038379,-941.23371199,0.00010944,2]
[339885101,1728135038393,-432.0665673,0.00010944,2]
[339885102,1728135038408,-161.0098619,0.00010944,2]
[339885108,1728135038658,-164.05,0.00010959,2]
[339885109,1728135038688,-500.0,0.00010973,2]
[339885110,1728135038698,-554.88,0.00010981,2]
[339885111,1728135038707,-199.15185174,0.0001099,2]
[339885112,1728135038716,-6246.68743827,0.00010997,2]
[339885113,1728135038726,-361.60822536,0.00010999,2]
[339885114,1728135038735,-668.0,0.00011,2]
[339885115,1728135038745,-661865.44210303,0.00011,2]
[339885116,1728135038754,-14789.33049853,0.00011,2]
[339885117,1728135038785,-463.4202856,0.00011,2]
[339885118,1728135038796,-2570.50200004,0.00011,2]
[339885119,1728135038807,-3413.85644702,0.00011,2]
[339885120,1728135038818,-4032.83102732,0.00011,2]
[339885121,1728135038863,-22403.32009726,0.00011,2]
[339885122,1728135038874,-749.86877271,0.00011,2]
[339885123,1728135038885,-125093.73850029,0.00011,2]
[339885124,1728135038900,-46037.38515355,0.00011,2]
[339885125,1728135038912,-1379.86572107,0.00011,2]
[339885130,1728135040138,-5666.17967787,0.00011,2]
[339885131,1728135040151,-27089.17785513,0.00011,2]
[339885132,1728135040163,-1518.24201,0.00011,2]
[339885133,1728135040174,-1363.68834929,0.00011,2]
[339885134,1728135040185,-2023.404,0.00011,2]
[339885135,1728135040303,-979.34041096,0.00011,2]
[339885150,1728135043144,-10512.0,0.00011,2]
[339885154,1728135043206,-19578.9643789,0.00011,2]
[339885155,1728135043218,-5299.99999998,0.00011,2]
[339885156,1728135043230,-647.03681964,0.00011,2]
[339885157,1728135043242,-352.96318036,0.00011,2]
[339885158,1728135043254,-43422.4606353,0.00011,2]
[339885159,1728135043266,-28037.08867211,0.00011,2]
[339885160,1728135043277,-36320.53279676,0.00011,2]
[339885161,1728135043292,-1500.0,0.00011,2]
[339885162,1728135043327,-1040.54071409,0.00011,2]
[339885165,1728135046134,-474.70594152,0.00011,2]
[339885167,1728135046148,-1613.48867776,0.00011,2]
[339885169,1728135046198,-663.02749647,0.00011,2]
[339885170,1728135046221,-59208.35310452,0.00011,2]
[339885171,1728135046234,-3007.05789495,0.00011,2]
[339885172,1728135046247,-3701.92517562,0.00011,2]
[339885173,1728135046270,-553.56974129,0.00011,2]
[339885174,1728135046281,-16153.49979463,0.00011,2]
[339885175,1728135046292,-33666.64341342,0.00011,2]
[339885176,1728135046305,-1429.02069593,0.00011,2]
[339885177,1728135046317,-353.68141749,0.00011,2]
[339885178,1728135046327,-716.16506598,0.00011,2]
[339885179,1728135046339,-506.28464956,0.00011,2]
[339885180,1728135046349,-5143.26,0.00011,2]
[339885181,1728135046361,-500.0,0.00011,2]
[339885182,1728135046500,-82538.7704699,0.00011,2]
[339885183,1728135046553,-430.18684934,0.00011,2]
[339885185,1728135046596,-2052.06145871,0.00011,2]
[339885186,1728135046608,-1295.87497203,0.00011,2]
[339885187,1728135046628,-3518.04920049,0.00011,2]
[339885188,1728135046648,-1580.85761632,0.00011,2]
[339885189,1728135046663,-1421.4756318,0.00011,2]
[339885190,1728135046673,-78312.49128101,0.00011,2]
[339885191,1728135046685,-7533.79919372,0.00011,2]
[339885192,1728135046696,-4408.15225311,0.00011,2]
[339885193,1728135046708,-11753.76194839,0.00011,2]
[339885194,1728135046719,-11258.983078,0.00011,2]
[339885195,1728135046730,-609.53823585,0.00011,2]
[339885196,1728135046741,-27526.82046743,0.00011,2]
[339885203,1728135242117,525.53,8.583e-05,2]
[339885204,1728135447786,328.0,0.00010215,2]
[339885205,1728135622467,171.19,0.00010186,2]
[339885206,1728135798655,500.0,0.00010105,2]
[339885207,1728135867311,499.25,8.564e-05,2]
[339885208,1728135989115,567.0,0.00013,5]
[339885209,1728136081151,1000.0,0.00010212,2]
[339885210,1728136104116,16386.84913152,0.00011,3]
[339885211,1728136104142,3613.15086848,0.00011,3]
[339885212,1728136112428,10000.0,0.00011,4]
[339885215,1728136232264,-232.05,0.00010238,2]
[339885216,1728136232274,-250.0,0.00010347,2]
[339885217,1728136232285,-36.29734357,0.00010353,2]
[339885218,1728136232298,-113.70265643,0.00010353,2]
[339885219,1728136232308,-250.0,0.00010387,2]
[339885220,1728136232318,-150.0,0.00010405,2]
[339885221,1728136232328,-308.42,0.00010456,2]
[339885222,1728136232338,-26.6861887,0.00010482,2]
[339885223,1728136232363,-501.95791481,0.00010482,2]
[339885224,1728136232458,-29.33589649,0.00010482,2]
[339885225,1728136232468,-150.0,0.0001074,2]
[339885226,1728136232477,-1088.52095485,0.0001078,2]
[339885227,1728136232487,-1108.4822904,0.0001078,2]
[339885238,1728136238359,-64.94824943,0.0001078,2]
[339885239,1728136238369,-499.25,0.00010828,2]
[339885240,1728136238378,-1613.475,0.000109,2]
[339885241,1728136238393,-1186.6985,0.000109,2]
[339885242,1728136238403,-172.52060973,0.000109,2]
[339885243,1728136238412,-3014.96078619,0.000109,2]
[339885244,1728136238421,-174.79455138,0.000109,2]
[339885245,1728136238431,-701.04556928,0.000109,2]
[339885246,1728136238440,-159.53480383,0.00010914,2]
[339885247,1728136238451,-159.68,0.00010959,2]
[339885248,1728136238460,-225.73,0.00010959,2]
[339885249,1728136238469,-500.0,0.00010973,2]
[339885250,1728136238479,-718.2721457,0.0001099,2]
[339885251,1728136238488,-150.0,0.00010997,2]
[339885252,1728136238497,-150.0,0.00010999,2]
[339885253,1728136238506,-663.0,0.00011,2]
[339885254,1728136238516,-6778.41618049,0.00011,2]
[339885255,1728136238574,-1.36433789,0.00011,2]
[339885256,1728136238585,-5241.1689,0.00011,2]
[339885257,1728136238614,-1363.02997939,0.00011,2]
[339885258,1728136238634,-150281.46497841,0.00011,2]
[339885259,1728136238643,-490392.35977243,0.00011,2]
[339885260,1728136238655,-7626.19378738,0.00011,2]
[339885261,1728136238681,-547.59005993,0.00011,2]
[339885262,1728136240865,-90015.47462847,0.00011,2]
[339885263,1728136240877,-2696.73915138,0.00011,2]
[339885264,1728136240946,-1175.38567836,0.00011,2]
[339885265,1728136240970,-3177.27105438,0.00011,2]
[339885266,1728136240999,-1080.68566528,0.00011,2]
[339885272,1728136243262,-689.2999998,0.00011,2]
[339885273,1728136243320,-9220.39968229,0.00011,2]
[339885274,1728136243432,-12479.99999997,0.00011,2]
[339885275,1728136243495,-4608.06807084,0.00011,2]
[339885276,1728136243551,-5250.00000002,0.00011,2]
[339885277,1728136246323,-376.56875,0.00011,2]
[339885278,1728136246365,-1094.55876189,0.0001078,2]
[339885279,1728136246374,-5113.79003959,0.00011,2]
[339885280,1728136246479,-753.94231022,0.00011,2]
[339885281,1728136246490,-1940.73829803,0.00011,2]
[339885282,1728136246539,-12059.72950308,0.00011,2]
[339885307,1728136393134,1058.0,0.00021,90]
[339885308,1728136541213,474.41,8.691e-05,2]
[339885309,1728136998921,500.0,8.622e-05,2]
[339885310,1728137080385,450.68,8.456e-05,2]
[339885311,1728137254087,229.57367,0.00021,120]
[339885314,1728137338341,171.19,0.00010225,2]
[339885317,1728137431528,-250.0,0.00010337,2]
[339885318,1728137431538,-250.0,0.00010337,2]
[339885319,1728137431547,-52.46305185,0.00010348,2]
[339885320,1728137431559,-133.17694815,0.00010348,2]
[339885321,1728137431568,-278.99,0.00010374,2]
[339885322,1728137431578,-322.96,0.00010554,2]
[339885323,1728137431588,-56.67250317,0.00010638,2]
[339885324,1728137431599,-448.9274062,0.00010638,2]
[339885325,1728137431615,-474.90769389,0.00010638,2]
[339885326,1728137431629,-19.49239674,0.00010638,2]
[339885327,1728137431638,-338.53867178,0.0001072,2]
[339885328,1728137431654,-112.14132822,0.0001072,2]
[339885329,1728137431664,-1101.55434544,0.0001078,2]
[339885330,1728137431673,-997.31855268,0.0001078,2]
[339885331,1728137431682,-103.42407796,0.000109,2]
[339885332,1728137431717,-56.11072587,0.000109,2]
[339885333,1728137431726,-199.86486842,0.000109,2]
[339885334,1728137431738,-678.19537099,0.000109,2]
[339885335,1728137431749,-1738.20676059,0.000109,2]
[339885336,1728137431758,-313.68845188,0.000109,2]
[339885337,1728137431767,-2116.82381358,0.000109,2]
[339885338,1728137431776,-78.32993695,0.000109,2]
[339885339,1728137431787,-279.69657276,0.000109,2]
[339885340,1728137431798,-109.33720315,0.000109,2]
[339885341,1728137431808,-190.347,0.00010923,2]
[339885342,1728137431821,-775.74579685,0.00010923,2]
[339885343,1728137431850,-741.4673214,0.00010923,2]
[339885344,1728137431862,-344.19142609,0.00010923,2]
[339885345,1728137431874,-256.62513862,0.00010923,2]
[339885349,1728137437526,-3166.1178955,0.00010923,2]
[339885350,1728137437538,-590.85242154,0.00010923,2]
[339885351,1728137437547,-88.42868988,0.00010923,2]
[339885352,1728137437611,-264.399938,0.00010923,2]
[339885353,1728137437627,-795.17137212,0.00010923,2]
[339885354,1728137437637,-13510.0,0.00010923,2]
[339885355,1728137437646,-164.01,0.00010959,2]
[339885356,1728137437656,-214.0,0.00010959,2]
[339885357,1728137437665,-164.05,0.00010959,2]
[339885358,1728137437674,-402.76862788,0.00010973,2]
[339885359,1728137437685,-97.23137212,0.00010973,2]
[339885360,1728137437695,-401.47440027,0.00010973,2]
[339885361,1728137437720,-20.21859973,0.00010973,2]
[339885362,1728137437729,-3904.2938426,0.00010998,2]
[339885363,1728137437738,-32484.483,0.00010998,2]
[339885364,1728137437747,-772.82526748,0.00010999,2]
[339885365,1728137437756,-647.0,0.00011,2]
[339885366,1728137437766,-40374.898032,0.00011,2]
[339885367,1728137439639,-311.14,0.00011,2]
[339885368,1728137439651,-5757.00546997,0.00011,2]
[339885375,1728137442649,-2620.0,0.00011,2]
[339885376,1728137442729,-677.4999998,0.00011,2]
[339885377,1728137442810,-6102.28543621,0.00011,2]
[339885389,1728137446017,-1592.03474949,0.00011,2]
[339885390,1728137446027,-234078.07968181,0.00011,2]
[339885391,1728137446043,-47591.007,0.00011,2]
[339885392,1728137740173,431.11,8.726e-05,2]
[339885393,1728138136995,-778.0,0.0001037,2]
[339885394,1728138211096,-379.18,0.00010269,2]
[339885395,1728138211124,-500.0,0.00010287,2]
[339885396,1728138211154,-278.99,0.00010315,2]
[339885397,1728138211182,-222.0,0.0001037,2]
[339885398,1728138211212,-250.0,0.00010372,2]
[339885399,1728138211240,-250.0,0.00010422,2]
[339885400,1728138211268,-246.73,0.00010561,2]
[339885401,1728138211296,-1026.90031494,0.0001078,2]
[339885402,1728138211324,-1089.22000678,0.0001078,2]
[339885403,1728138211352,-2118.8868,0.0001079,2]
[339885404,1728138211379,-25163.31839472,0.0001089,2]
[339885405,1728138211407,-8028.45988348,0.00010899,2]
[339885406,1728138211435,-150.0,0.00010899,2]
[339885407,1728138211463,-24985.0206,0.000109,2]
[339885408,1728138211490,-18027.6357,0.000109,2]
[339885409,1728138211518,-905.3344,0.000109,2]
[339885410,1728138211547,-1000.0,0.000109,2]
[339885411,1728138211574,-1372.656,0.000109,2]
[339885412,1728138211603,-174.79455138,0.000109,2]
[339885413,1728138211630,-502.0,0.000109,2]
[339885414,1728138211657,-288.067,0.000109,2]
[339885415,1728138211684,-161.0098619,0.000109,2]
[339885416,1728138211713,-159.53480383,0.000109,2]
[339885417,1728138211741,-387.0,0.00010912,2]
[339885418,1728138211770,-1703.14,0.00010912,2]
[339885419,1728138211797,-8153.4,0.00010912,2]
[339885420,1728138211825,-169.01,0.00010959,2]
[339885421,1728138211854,-159.68,0.00010959,2]
[339885422,1728138211883,-204.52,0.00010959,2]
[339885423,1728138211910,-200.85719885,0.00010973,2]
[339885424,1728138211936,-160.67851571,0.00010973,2]
[339885425,1728138211966,-500.0,0.00010973,2]
[339885426,1728138211994,-3935.34287906,0.0001098,2]
[339885427,1728138212023,-431.11,0.0001099,2]
[339885428,1728138212053,-73835.52308935,0.00010994,2]
[339885429,1728138314143,387.99,9.131e-05,2]
[339885445,1728138615214,-200.0,0.00010597,2]
[339885446,1728138615235,-250.0,0.00010743,2]
[339885447,1728138615255,-1035.49937011,0.00010774,2]
[339885448,1728138615275,-781.5196,0.00010894,2]
[339885449,1728138615298,-300.0,0.00010899,2]
[339885450,1728138615318,-195.06143791,0.000109,2]
[339885451,1728138615339,-7237.91959198,0.000109,2]
[339885452,1728138615949,-295.4392329,0.000109,2]
[339885453,1728138615969,-174.06460703,0.000109,2]
[339885454,1728138615989,-157.26,0.00010959,2]
[339885455,1728138616009,-786.33,0.00010959,2]
[339885456,1728138616030,-169.28,0.00010959,2]
[339885457,1728138616050,-415.89700425,0.00010973,2]
[339885458,1728138616077,-3972.26975121,0.00010998,2]
[339885459,1728138616097,-150.01,0.00010999,2]
[339885460,1728138616117,-334.43549302,0.00010999,2]
[339885461,1728138616138,-500.0,0.00010999,2]
[339885462,1728138616158,-500.0,0.00010999,2]
[339885463,1728138616179,-500.0,0.00010999,2]
[339885464,1728138616200,-500.0,0.00010999,2]
[339885465,1728138616223,-235.65727592,0.00010999,2]
[339885466,1728138616244,-500.0,0.00010999,2]
[339885467,1728138616265,-500.0,0.00010999,2]
[339885468,1728138616288,-309.35663567,0.00010999,2]
[339885469,1728138616367,-190.64336433,0.00010999,2]
[339885470,1728138616390,-550.0,0.00010999,2]
[339885471,1728138616410,-500.0,0.00010999,2]
[339885472,1728138616431,-216.70147599,0.00010999,2]
[339885473,1728138616452,-500.0,0.00010999,2]
[339885474,1728138616474,-500.0,0.00010999,2]
[339885475,1728138616495,-500.0,0.00010999,2]
[339885476,1728138616516,-284.45219327,0.00010999,2]
[339885477,1728138616537,-500.72545278,0.00010999,2]
[339885478,1728138616559,-500.0,0.00010999,2]
[339885479,1728138616584,-341.59428465,0.00010999,2]
[339885480,1728138616606,-500.0,0.00010999,2]
[339885481,1728138616626,-345.88697561,0.00010999,2]
[339885482,1728138616647,-630.0,0.00011,2]
[339885483,1728138616672,-3939.99625337,0.00011,2]
[339885484,1728138616777,-10000.0,0.00011,2]
[339885485,1728138618297,-10000.0,0.00011,2]
[339885486,1728138619270,-10000.0,0.00011,2]
[339885487,1728138625214,-3748.0,0.00011,2]
[339885499,1728138631761,-495.72833055,0.00011,2]
[339885500,1728138631772,-78.27166945,0.00011,2]
[339885501,1728138631782,-281.97483255,0.00011,2]
[339885504,1728138631906,-1079.51939674,0.0001078,2]
[339885506,1728138631915,-81.2118537,0.00011,2]
[339885508,1728138631925,-170124.54923904,0.00011,2]
[339885510,1728138631936,-549.255392,0.00011,2]
[339885514,1728138631967,-849.97896667,0.00011,2]
[339885517,1728138631982,-5409.42459508,0.00011,2]
[339885519,1728138631992,-6225.7093259,0.00011,2]
[339885521,1728138632003,-298.62086198,0.00011,2]
[339885523,1728138632014,-42152.99357282,0.00011,2]
[339885526,1728138632028,-5052.00706456,0.00011,2]
[339885528,1728138632039,-8680.88328834,0.00011,2]
[339885530,1728138632050,-4670.58140367,0.00011,2]
[339885532,1728138632065,-1251.33104596,0.00011,2]
[339885544,1728138632275,-3861.78600805,0.00011,2]
[339885545,1728138632288,-328.01300429,0.00011,2]
[339885546,1728138632299,-328.4348001,0.00011,2]
[339885547,1728138632310,-2080.63,0.00011,2]
[339885548,1728138632335,-1301.02498803,0.00011,2]
[339885549,1728138632346,-6178.9825058,0.00011,2]
[339885550,1728138632357,-8606.23695535,0.00011,2]
[339885551,1728138632369,-792.16214693,0.00011,2]
[339885555,1728138637787,-616.0766574,0.00011,2]
[339885556,1728138637799,-600.5,0.00011,2]
[339885557,1728138637810,-291.61977117,0.00011,2]
[339885558,1728138637842,-2351105.849967,0.00011,2]
[339885559,1728138637851,-10169.0,0.00011,2]
[339885560,1728138637861,-3352.0,0.00011,2]
[339885561,1728138637871,-1906.0,0.00011,2]
[339885562,1728138637880,-560.635,0.00011,2]
[339885563,1728138637889,-1909.0,0.00011,2]
[339885564,1728138637899,-808.0,0.00011,2]
[339885565,1728138637908,-250.0,0.00011,2]
[339885566,1728138637917,-1451048.66947952,0.00011,2]
[339885567,1728138637929,-833677.77233526,0.00011,2]
[339885568,1728138637941,-2144.37888385,0.00011,2]
[339885569,1728138637952,-1000.0,0.00011,2]
[339885570,1728138637963,-477.85701832,0.00011,2]
[339885571,1728138637976,-360.53268373,0.00011,2]
[339885572,1728138637987,-628.01,0.00011,2]
[339885591,1728138638432,-35.57701957,0.00011,2]